fUSD/lending_fUSD_20251229
["ID","MTS","AMOUNT","RATE_DAILY","PERIOD"]
[400045400,1767049854827,-4791.0,0.00042881,45]
[400045401,1767049854846,-151.0,0.0004288,120]
[400045402,1767049854855,-371.52533801,0.00042881,45]
[400045403,1767050026849,370.0,0.0003,120]
[400045404,1767050113328,-1358.693,0.00015678,2]
[400045405,1767050113350,-250.0,0.00015696,2]
[400045406,1767050113370,-2015.887225,0.00015714,2]
[400045407,1767050113390,-195.0,0.00015714,2]
[400045408,1767050113411,-1200.0,0.00015749,2]
[400045409,1767050113432,-300.0,0.00015749,2]
[400045410,1767050113453,-300.0,0.00015749,2]
[400045411,1767050113473,-500.0,0.0001575,2]
[400045412,1767050113494,-500.0,0.0001575,2]
[400045413,1767050113514,-628.25452076,0.0001575,2]
[400045414,1767050113535,-500.0,0.0001575,2]
[400045415,1767050113555,-250.0,0.00015827,2]
[400045416,1767050113576,-734.28017689,0.00015898,2]
[400045417,1767050113597,-5586.38447885,0.00015898,2]
[400045418,1767050113617,-206.15427982,0.00015898,2]
[400045419,1767050113638,-151.0,0.00015995,2]
[400045420,1767050113658,-300.0,0.00015997,2]
[400045421,1767050113858,-500.0,0.00015997,2]
[400045422,1767050113885,-500.0,0.00015997,2]
[400045423,1767050113911,-500.0,0.00015997,2]
[400045424,1767050113940,-500.0,0.00015997,2]
[400045425,1767050113968,-500.0,0.00015997,2]
[400045426,1767050113998,-156.09281463,0.00015997,2]
[400045427,1767050114027,-500.0,0.00015997,2]
[400045428,1767050114053,-1367.27457529,0.00015998,2]
[400045429,1767050114083,-26847.97892876,0.00015998,2]
[400045432,1767050190466,10000.0,0.00030137,120]
[400045433,1767050196878,10000.0,0.00030137,120]
[400045434,1767050204323,-500.0,0.0001575,2]
[400045435,1767050204346,-500.0,0.0001575,2]
[400045436,1767050204370,-206.15427981,0.00015898,2]
[400045437,1767050204393,-151.0,0.00015995,2]
[400045438,1767050204417,-300.0,0.00015997,2]
[400045439,1767050204447,-973152.02107124,0.00015998,2]
[400045440,1767050204470,-53520.8238,0.00015998,2]
[400045619,1767050397951,4623.67480512,0.0003,120]
[400045709,1767051031981,-372.51000098,0.00015,2]
[400045710,1767051031993,-28.07713901,0.00015,2]
[400045711,1767051032003,-446.12579599,0.00015556,2]
[400045712,1767051032050,-1413.25471627,0.00015556,2]
[400045713,1767051032062,-529.36483573,0.00015556,2]
[400045714,1767051032073,-556.94435542,0.00015556,2]
[400045715,1767051032084,-269.84867698,0.00015556,2]
[400045716,1767051032125,-440.62817376,0.00015556,2]
[400045717,1767051032136,-375.12799992,0.00015556,2]
[400045718,1767051032147,-500.0,0.00015556,2]
[400045719,1767051032159,-228.09194264,0.00015556,2]
[400045720,1767051032168,-300.0,0.00015728,2]
[400045721,1767051032177,-1500.0,0.00015729,2]
[400045722,1767051032187,-208.98158373,0.0001575,2]
[400045723,1767051032198,-291.01841627,0.0001575,2]
[400045724,1767051032207,-500.0,0.0001575,2]
[400045725,1767051032216,-246.88555572,0.000158,2]
[400045726,1767051032225,-394.06652645,0.00015923,2]
[400045727,1767051032237,-605.93347355,0.00015923,2]
[400045729,1767051032246,-210.0,0.00015999,2]
[400045730,1767051032255,-221190.12670246,0.00016,4]
[400045732,1767051032267,-62298.78360006,0.00016,4]
[400045735,1767051032278,-62893.81587501,0.00016,4]
[400045736,1767051032287,-529.3746,0.00016098,2]
[400045737,1767051032297,-5000.00672463,0.000162,5]
[400045739,1767051032307,-167.51,0.0001627,2]
[400045741,1767051032320,-1000.0,0.00016298,2]
[400045743,1767051032329,-433.17016065,0.00016298,2]
[400045745,1767051032339,-5418.3190262,0.00016353,2]
[400045747,1767051032350,-151.0,0.0001649,2]
[400045748,1767051032359,-151.0,0.0001649,2]
[400045749,1767051032368,-151.0,0.0001649,2]
[400045750,1767051032377,-151.0,0.0001649,2]
[400045751,1767051032390,-151.0,0.0001649,2]
[400045752,1767051032400,-151.0,0.0001649,2]
[400045753,1767051032409,-151.0,0.0001649,2]
[400045754,1767051032420,-151.0,0.0001649,2]
[400045755,1767051032429,-151.0,0.0001649,2]
[400045756,1767051032438,-151.0,0.0001649,2]
[400045757,1767051032448,-151.0,0.0001649,2]
[400045758,1767051032457,-151.0,0.0001649,2]
[400045759,1767051032466,-151.0,0.0001649,2]
[400045760,1767051032475,-151.0,0.0001649,2]
[400045761,1767051032484,-151.0,0.0001649,2]
[400045762,1767051032494,-255.0338629,0.0001649,2]
[400045763,1767051032503,-300.0,0.000165,2]
[400045764,1767051032512,-600.0,0.000165,2]
[400045765,1767051032521,-440.62817376,0.000165,2]
[400045766,1767051032532,-250.0,0.000165,2]
[400045767,1767051032541,-195.0,0.000165,2]
[400045768,1767051032551,-220.0,0.00016694,2]
[400045769,1767051032560,-150.0,0.00016699,2]
[400045770,1767051032569,-500.0,0.00016699,2]
[400045771,1767051032580,-150.0,0.00016699,2]
[400045772,1767051032591,-150.0,0.00016699,2]
[400045773,1767051032600,-150.0,0.00016699,2]
[400045774,1767051032609,-150.0,0.00016699,2]
[400045775,1767051032618,-150.0,0.00016699,2]
[400045776,1767051032628,-150.0,0.00016699,2]
[400045777,1767051032638,-150.0,0.00016699,2]
[400045778,1767051032647,-150.0,0.00016699,2]
[400045779,1767051032657,-150.0,0.00016699,2]
[400045780,1767051032666,-150.0,0.00016699,2]
[400045781,1767051032675,-150.0,0.00016699,2]
[400045782,1767051032686,-500.0,0.00016699,2]
[400045783,1767051032695,-150.0,0.00016699,2]
[400045784,1767051032915,-168.55832196,0.00016699,2]
[400045785,1767051032925,-150.0,0.00016726,2]
[400045786,1767051032934,-500.0,0.00016726,2]
[400045787,1767051032943,-150.0,0.00016726,2]
[400045788,1767051032952,-150.0,0.00016726,2]
[400045789,1767051032961,-150.0,0.00016726,2]
[400045790,1767051032971,-150.0,0.00016726,2]
[400045791,1767051032980,-150.0,0.00016726,2]
[400045792,1767051032989,-227.54541417,0.00016726,2]
[400045793,1767051032998,-150.0,0.00016726,2]
[400045794,1767051033007,-150.0,0.00016726,2]
[400045795,1767051033018,-150.0,0.00016726,2]
[400045796,1767051033027,-500.0,0.00016726,2]
[400045797,1767051033036,-150.0,0.00016726,2]
[400045798,1767051033045,-220.0,0.00016731,2]
[400045799,1767051033055,-220.0,0.00016746,2]
[400045800,1767051033064,-220.0,0.00016747,2]
[400045801,1767051033072,-200.0,0.00016754,2]
[400045802,1767051033081,-500.0,0.00016754,2]
[400045803,1767051033090,-222.4917813,0.00016754,2]
[400045804,1767051033101,-200.0,0.00016754,2]
[400045805,1767051033110,-150.0,0.00016754,2]
[400045806,1767051033119,-200.0,0.00016754,2]
[400045807,1767051033128,-200.0,0.00016754,2]
[400045808,1767051033138,-150.0,0.00016754,2]
[400045809,1767051033147,-150.0,0.00016754,2]
[400045810,1767051033156,-150.0,0.00016754,2]
[400045811,1767051033165,-500.0,0.00016754,2]
[400045812,1767051033175,-150.0,0.00016754,2]
[400045813,1767051033187,-220.0,0.00016765,2]
[400045814,1767051033197,-456.0,0.00016781,2]
[400045815,1767051033206,-150.0,0.00016781,2]
[400045816,1767051033215,-200.0,0.00016781,2]
[400045817,1767051033224,-150.0,0.00016781,2]
[400045818,1767051033233,-150.0,0.00016781,2]
[400045819,1767051033242,-188.0,0.00016781,2]
[400045820,1767051033252,-150.0,0.00016781,2]
[400045821,1767051033262,-220.0,0.00016784,2]
[400045822,1767051033273,-150.0,0.00016809,2]
[400045823,1767051033283,-250.0,0.00016809,2]
[400045824,1767051033292,-150.0,0.00016809,2]
[400045825,1767051033304,-150.0,0.00016809,2]
[400045826,1767051033322,-224.0,0.00016836,2]
[400045827,1767051033332,-250.0,0.00016836,2]
[400045828,1767051033340,-250.0,0.00016836,2]
[400045829,1767051033351,-1500.0,0.00016846,2]
[400045830,1767051033360,-220.0,0.00016894,2]
[400045831,1767051033369,-1000.0,0.000169,2]
[400045832,1767051033379,-186.51388471,0.000169,2]
[400045833,1767051033388,-1746.0438934,0.000169,2]
[400045834,1767051033397,-206.15427981,0.000169,2]
[400045835,1767051033406,-164.84756872,0.000169,2]
[400045836,1767051033415,-157.07838373,0.00016926,2]
[400045837,1767051033424,-220.0,0.0001694,2]
[400045838,1767051033433,-500.0,0.00016973,2]
[400045839,1767051033442,-295.41812437,0.00016973,2]
[400045840,1767051033451,-358.02143385,0.00016973,2]
[400045841,1767051033460,-175.89091811,0.00016973,2]
[400045842,1767051033469,-500.0,0.00016973,2]
[400045843,1767051033479,-500.0,0.00016973,2]
[400045844,1767051033488,-500.0,0.00016973,2]
[400045845,1767051033497,-500.0,0.00016973,2]
[400045846,1767051033507,-500.0,0.00016973,2]
[400045847,1767051033516,-500.0,0.00016973,2]
[400045848,1767051033525,-500.0,0.00016973,2]
[400045849,1767051033534,-500.0,0.00016973,2]
[400045850,1767051033543,-500.0,0.00016973,2]
[400045851,1767051033553,-500.0,0.00016973,2]
[400045852,1767051033562,-500.0,0.00016973,2]
[400045853,1767051033571,-500.0,0.00016973,2]
[400045854,1767051033580,-500.0,0.00016973,2]
[400045855,1767051033589,-500.0,0.00016973,2]
[400045856,1767051033599,-150.40009762,0.00016973,2]
[400045857,1767051033608,-537.22,0.00016973,2]
[400045858,1767051033617,-150.0,0.00016973,2]
[400045859,1767051033627,-220.0,0.00016976,2]
[400045860,1767051033637,-269.21010668,0.0001699,2]
[400045861,1767051033646,-151.0,0.00016997,2]
[400045862,1767051033655,-300.0,0.00016999,2]
[400045863,1767051033664,-666.0,0.00016999,2]
[400045864,1767051033674,-300.0,0.00016999,2]
[400045865,1767051033683,-150.0,0.00016999,2]
[400045866,1767051033692,-330.47490261,0.00016999,2]
[400045867,1767051033701,-500.0,0.00016999,2]
[400045868,1767051033710,-302.55203245,0.00016999,2]
[400045869,1767051033720,-500.0,0.00016999,2]
[400045870,1767051033729,-244.68024456,0.00016999,2]
[400045871,1767051033738,-500.0,0.00016999,2]
[400045872,1767051033747,-500.0,0.00016999,2]
[400045873,1767051033757,-500.0,0.00016999,2]
[400045874,1767051033765,-500.0,0.00016999,2]
[400045875,1767051033775,-500.0,0.00016999,2]
[400045876,1767051033783,-500.0,0.00016999,2]
[400045877,1767051033792,-500.0,0.00016999,2]
[400045878,1767051033801,-500.0,0.00016999,2]
[400045879,1767051033811,-500.0,0.00016999,2]
[400045880,1767051033820,-500.0,0.00016999,2]
[400045881,1767051033829,-500.0,0.00016999,2]
[400045882,1767051033838,-500.0,0.00016999,2]
[400045883,1767051033847,-167.89586121,0.00016999,2]
[400045884,1767051033856,-500.0,0.00016999,2]
[400045885,1767051033866,-500.0,0.00016999,2]
[400045886,1767051033875,-500.0,0.00016999,2]
[400045887,1767051033884,-500.0,0.00016999,2]
[400045888,1767051033894,-500.0,0.00016999,2]
[400045889,1767051033903,-500.0,0.00016999,2]
[400045890,1767051033912,-500.0,0.00016999,2]
[400045891,1767051033923,-500.0,0.00016999,2]
[400045892,1767051033933,-500.0,0.00016999,2]
[400045893,1767051033942,-500.0,0.00016999,2]
[400045894,1767051033951,-500.0,0.00016999,2]
[400045895,1767051033960,-465.60928146,0.00016999,2]
[400045896,1767051033972,-340.58538769,0.00016999,2]
[400045897,1767051033982,-500.0,0.00016999,2]
[400045898,1767051033991,-500.0,0.00016999,2]
[400045899,1767051034000,-500.0,0.00016999,2]
[400045900,1767051034011,-500.0,0.00016999,2]
[400045901,1767051034021,-500.0,0.00016999,2]
[400045902,1767051034030,-500.0,0.00016999,2]
[400045903,1767051034040,-250.0,0.00017,2]
[400045904,1767051034049,-11018.11398211,0.00017,2]
[400045905,1767051034061,-89915.14752113,0.00017,2]
[400045906,1767051034074,-273.84430536,0.00017,2]
[400045907,1767051034093,-6492.17425152,0.00017,2]
[400045908,1767051034106,-498.7032373,0.00017,2]
[400045911,1767051038092,-151.0,0.00016457,2]
[400045912,1767051038104,-151.0,0.00016457,2]
[400045913,1767051038114,-281.72879,0.00017,2]
[400045914,1767051038126,-337.11333192,0.00017,2]
[400045915,1767051038154,-1144.49982297,0.00017,2]
[400045916,1767051038166,-34315.0000025,0.00017,2]
[400045917,1767051038178,-860.70000746,0.00017,2]
[400045918,1767051038216,-2000.51708033,0.00017,2]
[400045919,1767051038279,-860.85068214,0.00017,2]
[400045920,1767051038291,-493.17330366,0.00017,2]
[400046077,1767051040165,-277378.42633382,0.00017,2]
[400046087,1767051040244,-2093.22915044,0.00017,2]
[400046089,1767051040255,-1726.20261433,0.00017,2]
[400046091,1767051040266,-3695.32561556,0.00017,2]
[400046093,1767051040277,-18685.83652905,0.00017,2]
[400046097,1767051040304,-882.99938872,0.00017,2]
[400046110,1767051040422,-92482.3384225,0.00017,2]
[400046113,1767051040433,-937.795,0.00017,2]
[400046115,1767051040444,-632.12874861,0.00017,2]
[400046117,1767051040455,-1882634.4512941,0.00017,2]
[400046498,1767051044238,-921.25490695,0.00016926,2]
[400046500,1767051044248,-110735.83669396,0.00017,2]
[400046503,1767051044261,-11944.89784401,0.00017,2]
[400046504,1767051044273,-336552.58295313,0.00017,2]
[400046505,1767051044284,-1119.65292951,0.00017,2]
[400046695,1767051046145,-63650.34129923,0.00017,2]
[400046697,1767051046157,-1746.80500616,0.00017,2]
[400046701,1767051046180,-18790.14322855,0.00017,2]
[400046703,1767051046192,-341.51495139,0.00017,2]
[400046705,1767051046203,-1455.72961459,0.00017,2]
[400046707,1767051046214,-652.03613473,0.00017,2]
[400046714,1767051046264,-1100.0,0.00017,2]
[400046716,1767051046276,-706.41106177,0.00017,2]
[400046718,1767051046288,-3726.678265,0.00017,2]
[400046734,1767051046443,-4265.26000007,0.00017,2]
[400047419,1767052088895,-240.67,0.00013699,2]
[400047420,1767052088920,-163.77126412,0.00013699,2]
[400047436,1767052232132,-21.81628734,0.00013699,2]
[400047437,1767052232143,-263.0,0.00013699,2]
[400047438,1767052232154,-62.03174438,0.00014979,2]
[400047439,1767052232184,-104.62825562,0.00014979,2]
[400047440,1767052232194,-195.0,0.00015018,2]
[400047441,1767052232204,-307.69123084,0.00015068,2]
[400047442,1767052232214,-195.0,0.00015068,2]
[400047443,1767052232224,-485.80303354,0.00015129,2]
[400047444,1767052232236,-160.29696646,0.00015129,2]
[400047445,1767052232247,-185.58755146,0.00015136,2]
[400047446,1767052232258,-150.0,0.00015168,2]
[400047447,1767052232268,-60.76222994,0.00015189,2]
[400047448,1767052232281,-134.23777006,0.00015189,2]
[400047449,1767052232292,-300.0,0.00015287,2]
[400047450,1767052232302,-450.36761651,0.00015287,2]
[400047451,1767052232315,-749.63238349,0.00015287,2]
[400047452,1767052232326,-300.0,0.00015287,2]
[400047453,1767052232336,-300.0,0.00015287,2]
[400047454,1767052232346,-300.0,0.00015287,2]
[400047455,1767052232355,-150.0,0.00015288,2]
[400047456,1767052232366,-150.0,0.00015288,2]
[400047457,1767052232375,-150.0,0.00015288,2]
[400047458,1767052232385,-150.0,0.00015288,2]
[400047459,1767052232396,-150.0,0.00015288,2]
[400047460,1767052232406,-150.0,0.00015288,2]
[400047461,1767052232416,-150.0,0.00015288,2]
[400047462,1767052232425,-150.0,0.00015288,2]
[400047463,1767052232435,-150.0,0.00015288,2]
[400047464,1767052232444,-150.0,0.00015288,2]
[400047465,1767052232454,-150.0,0.00015288,2]
[400047467,1767052232465,-150.0,0.00015288,2]
[400047470,1767052232475,-150.0,0.00015288,2]
[400047472,1767052232485,-150.0,0.00015288,2]
[400047474,1767052232497,-150.0,0.00015288,2]
[400047476,1767052232507,-537.23,0.00015288,2]
[400047478,1767052232519,-166.66,0.00015294,2]
[400047480,1767052232528,-150.0,0.00015401,2]
[400047482,1767052232538,-150.0,0.00015418,2]
[400047484,1767052232547,-150.0,0.00015458,2]
[400047485,1767052232557,-150.0,0.00015476,2]
[400047487,1767052232567,-150.0,0.00015514,2]
[400047490,1767052232577,-150.0,0.0001553,2]
[400047492,1767052232587,-150.0,0.0001553,2]
[400047494,1767052232599,-150.0,0.00015549,2]
[400047496,1767052232608,-537.23,0.00015562,2]
[400047498,1767052232618,-166.66,0.00015609,2]
[400047500,1767052232627,-150.0,0.00015627,2]
[400047502,1767052232637,-150.0,0.00015627,2]
[400047503,1767052232646,-1201.894036,0.00015661,2]
[400047505,1767052232656,-150.0,0.00015665,2]
[400047507,1767052232665,-150.0,0.0001568,2]
[400047508,1767052232676,-150.0,0.00015741,2]
[400047509,1767052232685,-150.0,0.00015773,2]
[400047510,1767052232694,-150.0,0.00015773,2]
[400047511,1767052232704,-150.0,0.00015773,2]
[400047512,1767052232714,-150.0,0.00015797,2]
[400047513,1767052232723,-500.0,0.00015797,2]
[400047514,1767052232732,-150.0,0.0001581,2]
[400047515,1767052232742,-537.23,0.00015836,2]
[400047516,1767052232752,-150.0,0.00015854,2]
[400047517,1767052232765,-150.0,0.00015854,2]
[400047518,1767052232774,-8181.34,0.00015891,2]
[400047519,1767052232784,-151.0,0.00015904,2]
[400047520,1767052232795,-151.0,0.00015904,2]
[400047521,1767052232805,-166.66,0.00015925,2]
[400047522,1767052232815,-150.0,0.00015941,2]
[400047523,1767052232824,-548.43,0.00015955,2]
[400047524,1767052232834,-150.0,0.00015967,2]
[400047525,1767052232843,-150.0,0.00015967,2]
[400047526,1767052232853,-150.0,0.00016016,2]
[400047527,1767052232863,-150.0,0.00016016,2]
[400047528,1767052232873,-150.0,0.00016043,2]
[400047529,1767052232882,-150.0,0.00016072,2]
[400047530,1767052232892,-150.0,0.0001608,2]
[400047531,1767052232902,-537.23,0.0001611,2]
[400047532,1767052232912,-200.0,0.0001613,2]
[400047533,1767052232921,-200.0,0.0001613,2]
[400047534,1767052232931,-151.0,0.0001613,2]
[400047535,1767052232941,-151.0,0.0001613,2]
[400047536,1767052232951,-151.0,0.0001613,2]
[400047537,1767052232960,-200.0,0.0001613,2]
[400047538,1767052232969,-151.0,0.0001613,2]
[400047539,1767052232979,-500.0,0.0001613,2]
[400047540,1767052232989,-151.0,0.0001613,2]
[400047541,1767052232998,-500.0,0.0001613,2]
[400047542,1767052233007,-151.0,0.0001613,2]
[400047543,1767052233018,-500.0,0.0001613,2]
[400047544,1767052233027,-151.0,0.0001613,2]
[400047545,1767052233037,-500.0,0.0001613,2]
[400047546,1767052233047,-151.0,0.0001613,2]
[400047547,1767052233056,-500.0,0.0001613,2]
[400047548,1767052233066,-500.0,0.0001613,2]
[400047549,1767052233075,-151.0,0.0001613,2]
[400047550,1767052233085,-500.0,0.0001613,2]
[400047551,1767052233094,-500.0,0.0001613,2]
[400047552,1767052233104,-151.0,0.0001613,2]
[400047553,1767052233115,-500.0,0.0001613,2]
[400047554,1767052233124,-500.0,0.0001613,2]
[400047555,1767052233134,-151.0,0.0001613,2]
[400047556,1767052233144,-500.0,0.0001613,2]
[400047557,1767052233154,-500.0,0.0001613,2]
[400047558,1767052233163,-151.0,0.0001613,2]
[400047559,1767052233173,-500.0,0.0001613,2]
[400047560,1767052233182,-500.0,0.0001613,2]
[400047561,1767052233192,-500.0,0.0001613,2]
[400047562,1767052233202,-500.0,0.0001613,2]
[400047563,1767052233211,-500.0,0.0001613,2]
[400047564,1767052233221,-500.0,0.0001613,2]
[400047565,1767052233231,-500.0,0.0001613,2]
[400047566,1767052233241,-500.0,0.0001613,2]
[400047567,1767052233251,-500.0,0.0001613,2]
[400047568,1767052233261,-500.0,0.0001613,2]
[400047569,1767052233271,-500.0,0.0001613,2]
[400047570,1767052233281,-150.0,0.00016137,2]
[400047571,1767052233291,-150.0,0.00016137,2]
[400047572,1767052233301,-150.0,0.00016137,2]
[400047573,1767052233311,-1000.0,0.00016139,2]
[400047574,1767052233321,-9768.54670162,0.0001614,2]
[400047575,1767052233334,-14721.1406957,0.0001614,2]
[400047576,1767052233345,-2740.89999996,0.0001614,2]
[400047577,1767052233357,-6285.10522264,0.0001614,2]
[400047578,1767052233368,-480.71,0.0001614,2]
[400047579,1767052233381,-256.00738008,0.0001614,2]
[400047580,1767052233391,-150.0,0.00016194,2]
[400047581,1767052233401,-150.0,0.00016202,2]
[400047582,1767052233411,-152.32,0.00016206,2]
[400047583,1767052233421,-150.0,0.00016231,2]
[400047584,1767052233666,-166.66,0.0001624,2]
[400047585,1767052233694,-35.79166197,0.00016258,2]
[400047586,1767052233707,-114.20833803,0.00016258,2]
[400047587,1767052233717,-150.0,0.00016258,2]
[400047588,1767052233727,-79.9633765,0.00016293,2]
[400047589,1767052233739,-464.3744897,0.00016293,2]
[400047590,1767052233751,-1238.93284746,0.00016293,2]
[400047591,1767052233766,-69.14928634,0.00016293,2]
[400047592,1767052233776,-150.0,0.00016307,2]
[400047593,1767052233786,-150.0,0.00016307,2]
[400047594,1767052233796,-150.0,0.00016333,2]
[400047595,1767052233805,-142.27476949,0.00016384,2]
[400047603,1767052238239,-394.95761337,0.00016384,2]
[400047604,1767052238249,-150.0,0.0001642,2]
[400047605,1767052238259,-75.04238673,0.0001642,2]
[400047606,1767052238275,-74.95761327,0.0001642,2]
[400047607,1767052238285,-150.0,0.00016464,2]
[400047608,1767052238295,-195.0,0.00016477,2]
[400047609,1767052238305,-90.05310653,0.00016477,2]
[400047610,1767052238317,-104.94689347,0.00016477,2]
[400047611,1767052238327,-150.0,0.00016477,2]
[400047612,1767052238337,-73.93977461,0.00016501,2]
[400047613,1767052238350,-76.06022539,0.00016501,2]
[400047614,1767052238360,-150.0,0.00016501,2]
[400047615,1767052238369,-150.0,0.00016533,2]
[400047616,1767052238379,-166.66,0.00016555,2]
[400047617,1767052238389,-150.0,0.00016594,2]
[400047618,1767052238399,-150.0,0.00016609,2]
[400047619,1767052238408,-150.0,0.00016647,2]
[400047620,1767052238418,-150.0,0.00016647,2]
[400047621,1767052238428,-200.0,0.00016678,2]
[400047622,1767052238439,-200.0,0.00016678,2]
[400047623,1767052238450,-120.96408656,0.00016678,2]
[400047624,1767052238463,-379.03591344,0.00016678,2]
[400047625,1767052238473,-150.0,0.00016699,2]
[400047626,1767052238484,-165.38,0.00016712,2]
[400047627,1767052238493,-150.0,0.00016725,2]
[400047628,1767052238503,-420.0,0.00016726,2]
[400047629,1767052238513,-150.0,0.00016744,2]
[400047630,1767052238523,-150.0,0.00016744,2]
[400047631,1767052238533,-150.0,0.0001676,2]
[400047632,1767052238543,-150.0,0.00016798,2]
[400047633,1767052238552,-1482.67437018,0.000168,2]
[400047634,1767052238565,-5388.37078547,0.000168,2]
[400047635,1767052238575,-2500.0,0.000168,2]
[400047636,1767052238584,-150.0,0.00016816,2]
[400047637,1767052238593,-150.0,0.00016856,2]
[400047639,1767052238603,-150.0,0.00016873,2]
[400047641,1767052238613,-2850.78631551,0.0001689,2]
[400047644,1767052238629,-398.96585399,0.0001689,2]
[400047827,1767052240387,-14726.38434621,0.0001689,2]
[400047830,1767052240399,-1241.61231828,0.0001689,2]
[400047835,1767052240444,-89817.52686601,0.0001689,2]
[400047837,1767052240455,-10000.0,0.000169,2]
[400047839,1767052240464,-164.8475687,0.000169,2]
[400047841,1767052240473,-1164.02926226,0.000169,2]
[400047843,1767052240482,-157.07838369,0.000169,2]
[400047845,1767052240491,-179.69892525,0.000169,2]
[400047847,1767052240500,-725.72948887,0.000169,2]
[400047849,1767052240509,-1015.56448788,0.000169,2]
[400047851,1767052240519,-500.0,0.00016973,2]
[400047853,1767052240529,-509.26367141,0.00016973,2]
[400047855,1767052240538,-500.0,0.00016973,2]
[400047857,1767052240547,-211.71097103,0.00016973,2]
[400047858,1767052240556,-165.6820002,0.00016973,2]
[400047860,1767052240566,-500.0,0.00016973,2]
[400047862,1767052240576,-204.58187563,0.00016973,2]
[400047864,1767052240585,-500.0,0.00016973,2]
[400047866,1767052240595,-150.0,0.00016986,2]
[400047868,1767052240604,-150.0,0.00016986,2]
[400047870,1767052240614,-150.00000001,0.00016986,2]
[400047872,1767052240623,-150.0,0.00016986,2]
[400047874,1767052240632,-150.0,0.00016986,2]
[400047876,1767052240641,-150.0,0.00016986,2]
[400047877,1767052240651,-185.68075305,0.00016986,2]
[400047878,1767052240661,-150.0,0.00016986,2]
[400047879,1767052240671,-250.03401256,0.00016986,2]
[400047880,1767052240681,-150.0,0.00016986,2]
[400047881,1767052240691,-150.0,0.00016986,2]
[400047882,1767052240700,-150.0,0.00016986,2]
[400047883,1767052240709,-151.0,0.00016997,2]
[400047884,1767052240719,-500.0,0.00016999,2]
[400047885,1767052240729,-500.0,0.00016999,2]
[400047886,1767052240739,-500.0,0.00016999,2]
[400047887,1767052240748,-500.0,0.00016999,2]
[400047889,1767052240761,-500.0,0.00016999,2]
[400047891,1767052240771,-500.0,0.00016999,2]
[400047893,1767052240781,-500.0,0.00016999,2]
[400047895,1767052240791,-500.0,0.00016999,2]
[400047897,1767052240802,-500.0,0.00016999,2]
[400047899,1767052240811,-500.0,0.00016999,2]
[400047901,1767052240820,-500.0,0.00016999,2]
[400047903,1767052240832,-500.0,0.00016999,2]
[400047905,1767052240841,-399.54,0.00016999,2]
[400047907,1767052240850,-300.0,0.00016999,2]
[400047909,1767052240859,-463.09954014,0.00016999,2]
[400047911,1767052240870,-500.0,0.00016999,2]
[400047913,1767052240878,-500.0,0.00016999,2]
[400047915,1767052240887,-500.0,0.00016999,2]
[400047917,1767052240897,-500.0,0.00016999,2]
[400047919,1767052240906,-500.0,0.00016999,2]
[400047921,1767052240915,-500.0,0.00016999,2]
[400047923,1767052240925,-500.0,0.00016999,2]
[400047925,1767052240936,-500.0,0.00016999,2]
[400047927,1767052240946,-500.0,0.00016999,2]